[Event "*** Titled Tuesday 3|2 Blitz"]
[Site "Chess.com"]
[Date "2016.07.05"]
[Round "5"]
[White "matein28"]
[Black "vellottiwizard"]
[Result "1-0"]
[WhiteElo "2403"]
[BlackElo "2501"]
[TimeControl "180+2"]
[EndTime "18:01:22 PDT"]
[Termination "matein28 won by resignation"]

1. d4 {[%clk 0:02:36.6]} 1... e6 {[%clk 0:02:58.6]} 2. c4 {[%clk 0:02:37.7]}
2... Nf6 {[%clk 0:02:59]} 3. Nf3 {[%clk 0:02:39.2]} 3... b6 {[%clk 0:02:59.6]}
4. g3 {[%clk 0:02:40.5]} 4... Bb7 {[%clk 0:03:01.3]} 5. Bg2 {[%clk 0:02:42.1]}
5... Be7 {[%clk 0:03:03]} 6. O-O {[%clk 0:02:43.7]} 6... O-O {[%clk 0:03:04.7]}
7. Nc3 {[%clk 0:02:44.6]} 7... Ne4 {[%clk 0:03:06.2]} 8. Nxe4 {[%clk 0:02:44]}
8... Bxe4 {[%clk 0:03:06.6]} 9. Ne5 {[%clk 0:02:44.7]} 9... Bxg2 {[%clk
0:03:08.5]} 10. Kxg2 {[%clk 0:02:46.1]} 10... d6 {[%clk 0:02:58.5]} 11. Nd3
{[%clk 0:02:44.5]} 11... d5 {[%clk 0:02:59.3]} 12. Qc2 {[%clk 0:02:37.6]} 12...
dxc4 {[%clk 0:02:50.3]} 13. Qxc4 {[%clk 0:02:38.3]} 13... Nd7 {[%clk 0:02:51.8]}
14. Bf4 {[%clk 0:02:34.8]} 14... c5 {[%clk 0:02:43.2]} 15. dxc5 {[%clk
0:02:33.2]} 15... Nxc5 {[%clk 0:02:42.7]} 16. Nxc5 {[%clk 0:02:34.5]} 16... Bxc5
{[%clk 0:02:44.1]} 17. b4 {[%clk 0:02:32.5]} 17... Be7 {[%clk 0:02:40]} 18. Rfd1
{[%clk 0:02:28]} 18... Qc8 {[%clk 0:02:40.5]} 19. Rac1 {[%clk 0:02:29.3]} 19...
Qxc4 {[%clk 0:02:37.4]} 20. Rxc4 {[%clk 0:02:31.2]} 20... Rac8 {[%clk
0:02:38.8]} 21. Rdc1 {[%clk 0:02:30.7]} 21... Rxc4 {[%clk 0:02:26.5]} 22. Rxc4
{[%clk 0:02:32.6]} 22... b5 {[%clk 0:02:03.3]} 23. Rc7 {[%clk 0:02:31]} 23...
Bxb4 {[%clk 0:02:03.2]} 24. Rxa7 {[%clk 0:02:32.1]} 24... Bc5 {[%clk 0:02:00.6]}
25. Ra5 {[%clk 0:02:30.3]} 25... f6 {[%clk 0:01:37.6]} 26. Rxb5 {[%clk
0:02:30.2]} 26... Be7 {[%clk 0:01:39.2]} 27. Rb8 {[%clk 0:02:25.9]} 27... e5
{[%clk 0:01:25.5]} 28. Rxf8+ {[%clk 0:02:25.3]} 28... Kxf8 {[%clk 0:01:27.3]}
29. Bd2 {[%clk 0:02:20.7]} 29... Ba3 {[%clk 0:01:26.1]} 30. Kf3 {[%clk
0:02:21.8]} 30... Ke7 {[%clk 0:01:23.9]} 31. Ke4 {[%clk 0:02:19.4]} 31... Ke6
{[%clk 0:01:25]} 32. f3 {[%clk 0:02:16.4]} 32... g6 {[%clk 0:01:22.3]} 33. Kd3
{[%clk 0:02:15.4]} 33... h5 {[%clk 0:01:12.6]} 34. Kc4 {[%clk 0:02:13.6]} 34...
g5 {[%clk 0:00:55.9]} 35. h3 {[%clk 0:02:13]} 35... e4 {[%clk 0:00:48.7]} 36.
Bb4 {[%clk 0:01:50.7]} 36... Bb2 {[%clk 0:00:10.2]} 37. g4 {[%clk 0:01:42.5]}
37... f5 {[%clk 0:00:07.5]} 38. gxh5 {[%clk 0:01:31]} 38... f4 {[%clk
0:00:04.3]} 39. fxe4 {[%clk 0:01:29.1]} 39... Ke5 {[%clk 0:00:04]} 40. Bc3+
{[%clk 0:01:30.3]} 40... Bxc3 {[%clk 0:00:05.3]} 41. Kxc3 {[%clk 0:01:32]} 41...
Kxe4 {[%clk 0:00:07.1]} 42. h6 {[%clk 0:01:33.3]} 42... g4 {[%clk 0:00:08.8]}
43. hxg4 {[%clk 0:01:34.2]} 1-0

[Event "*** Titled Tuesday 3|2 Blitz"]
[Site "Chess.com"]
[Date "2016.07.05"]
[Round "5"]
[White "TyIerDurden"]
[Black "Sanan_Sjugirov"]
[Result "1/2-1/2"]
[WhiteElo "2452"]
[BlackElo "2665"]
[TimeControl "180+2"]
[EndTime "18:01:59 PDT"]
[Termination "Game drawn by agreement"]

1. Nf3 {[%clk 0:03:00.7]} 1... Nf6 {[%clk 0:03:00.7]} 2. g3 {[%clk 0:03:00.9]}
2... d5 {[%clk 0:03:01.7]} 3. Bg2 {[%clk 0:03:02.8]} 3... c6 {[%clk 0:03:03]} 4.
d3 {[%clk 0:03:03.7]} 4... Bg4 {[%clk 0:03:04]} 5. O-O {[%clk 0:03:04]} 5...
Nbd7 {[%clk 0:03:04.8]} 6. Nbd2 {[%clk 0:03:05.2]} 6... e5 {[%clk 0:03:05.6]} 7.
h3 {[%clk 0:03:06.2]} 7... Bh5 {[%clk 0:03:06.5]} 8. e4 {[%clk 0:03:03.9]} 8...
Bd6 {[%clk 0:03:03.8]} 9. b3 {[%clk 0:03:03]} 9... O-O {[%clk 0:03:04.3]} 10.
Bb2 {[%clk 0:03:04.3]} 10... Re8 {[%clk 0:03:05.4]} 11. g4 {[%clk 0:03:03]}
11... Bg6 {[%clk 0:03:06.1]} 12. Nh4 {[%clk 0:03:04.1]} 12... Bc5 {[%clk
0:03:04.1]} 13. Nxg6 {[%clk 0:03:02.8]} 13... hxg6 {[%clk 0:03:04.8]} 14. Re1
{[%clk 0:03:00.4]} 14... a5 {[%clk 0:02:58]} 15. c3 {[%clk 0:03:01.1]} 15...
dxe4 {[%clk 0:02:55.1]} 16. Nxe4 {[%clk 0:02:58.9]} 16... Nxe4 {[%clk
0:02:54.9]} 17. Rxe4 {[%clk 0:03:00.8]} 17... Nf6 {[%clk 0:02:52.4]} 18. Re1
{[%clk 0:03:00.7]} 18... Nd5 {[%clk 0:02:47.3]} 19. d4 {[%clk 0:02:52.7]} 19...
exd4 {[%clk 0:02:46.4]} 20. Rxe8+ {[%clk 0:02:54.6]} 20... Qxe8 {[%clk
0:02:47.2]} 21. Bxd5 {[%clk 0:02:53.9]} 21... cxd5 {[%clk 0:02:43.2]} 22. cxd4
{[%clk 0:02:55.8]} 22... Bd6 {[%clk 0:02:39.2]} 23. Qd2 {[%clk 0:02:50.7]} 23...
Qd7 {[%clk 0:02:31.6]} 24. a4 {[%clk 0:02:48.5]} 24... Bb4 {[%clk 0:02:28.8]}
25. Bc3 {[%clk 0:02:47.2]} 25... Qd6 {[%clk 0:01:51.9]} 26. Bxb4 {[%clk
0:02:43.7]} 26... axb4 {[%clk 0:01:53.8]} 27. Rc1 {[%clk 0:02:41.1]} 27... Re8
{[%clk 0:01:53.2]} 28. Re1 {[%clk 0:02:38.2]} 28... Rc8 {[%clk 0:01:52.5]} 29.
Rc1 {[%clk 0:02:35.3]} 29... Re8 {[%clk 0:01:53.3]} 30. Re1 {[%clk 0:02:35.9]}
30... Rf8 {[%clk 0:01:51.6]} 31. Qe2 {[%clk 0:02:32.2]} 31... Qc7 {[%clk
0:01:45.2]} 32. Qe7 {[%clk 0:02:28.5]} 32... Qc3 {[%clk 0:01:44.2]} 33. Qe3
{[%clk 0:02:25.9]} 33... Rc8 {[%clk 0:01:15.9]} 34. Kh2 {[%clk 0:02:21.7]} 34...
Qb2 {[%clk 0:00:58.9]} 35. Re2 {[%clk 0:02:13]} 35... Qb1 {[%clk 0:00:59.7]} 36.
Re1 {[%clk 0:02:10.8]} 36... Qc2 {[%clk 0:00:56.1]} 37. Re2 {[%clk 0:02:07.7]}
37... Qc7+ {[%clk 0:00:52.8]} 38. Kg1 {[%clk 0:02:02.1]} 38... Qc6 {[%clk
0:00:45.3]} 39. Qf3 {[%clk 0:01:39]} 39... Rd8 {[%clk 0:00:32.9]} 40. Re5 {[%clk
0:01:33.1]} 40... f6 {[%clk 0:00:28.7]} 41. Re2 {[%clk 0:01:28.2]} 41... Kf7
{[%clk 0:00:23.2]} 42. Qe3 {[%clk 0:01:26.6]} 42... Qd7 {[%clk 0:00:22.8]} 43.
Qd2 {[%clk 0:01:24.4]} 43... Qd6 {[%clk 0:00:23.3]} 44. Qc2 {[%clk 0:01:23.1]}
44... Rh8 {[%clk 0:00:18.3]} 45. Kg2 {[%clk 0:01:21]} 45... Rd8 {[%clk
0:00:18.7]} 1/2-1/2

[Event "*** Titled Tuesday 3|2 Blitz"]
[Site "Chess.com"]
[Date "2016.07.05"]
[Round "5"]
[White "proxy6"]
[Black "Viaje"]
[Result "0-1"]
[WhiteElo "1915"]
[BlackElo "2129"]
[TimeControl "180+2"]
[EndTime "18:02:05 PDT"]
[Termination "Viaje won on time"]

1. d4 {[%clk 0:03:00]} 1... Nf6 {[%clk 0:03:00.2]} 2. c4 {[%clk 0:03:00.3]} 2...
c5 {[%clk 0:03:01.7]} 3. d5 {[%clk 0:02:58.5]} 3... b5 {[%clk 0:03:03.2]} 4.
cxb5 {[%clk 0:02:57.7]} 4... a6 {[%clk 0:03:04.5]} 5. bxa6 {[%clk 0:02:56.9]}
5... g6 {[%clk 0:03:05.7]} 6. Nc3 {[%clk 0:02:55.4]} 6... Bg7 {[%clk 0:03:07]}
7. Nf3 {[%clk 0:02:55.5]} 7... O-O {[%clk 0:03:07.8]} 8. e4 {[%clk 0:02:45.4]}
8... Qa5 {[%clk 0:03:08.7]} 9. Bd3 {[%clk 0:02:41.2]} 9... Nxd5 {[%clk
0:03:05.9]} 10. exd5 {[%clk 0:02:32.3]} 10... Bxc3+ {[%clk 0:03:06]} 11. bxc3
{[%clk 0:02:33.1]} 11... Qxc3+ {[%clk 0:03:06.4]} 12. Bd2 {[%clk 0:02:34]} 12...
Qxd3 {[%clk 0:03:07.3]} 13. Be3 {[%clk 0:02:26.2]} 13... Qxd1+ {[%clk
0:02:59.8]} 14. Rxd1 {[%clk 0:02:26.4]} 14... d6 {[%clk 0:03:01.2]} 15. O-O
{[%clk 0:02:23.9]} 15... Nxa6 {[%clk 0:02:59.4]} 16. Rfe1 {[%clk 0:02:11.3]}
16... Nb4 {[%clk 0:02:58.8]} 17. Bh6 {[%clk 0:02:09.8]} 17... Re8 {[%clk
0:02:56.6]} 18. Bg5 {[%clk 0:02:10.5]} 18... Ra7 {[%clk 0:02:40.2]} 19. Re2
{[%clk 0:02:08.3]} 19... e5 {[%clk 0:02:07.1]} 20. dxe6 {[%clk 0:02:05.5]} 20...
Bxe6 {[%clk 0:02:07.9]} 21. Rxd6 {[%clk 0:02:04]} 21... Rxa2 {[%clk 0:02:08.7]}
22. Rxa2 {[%clk 0:02:02.9]} 22... Nxa2 {[%clk 0:02:09.4]} 23. h3 {[%clk
0:01:52.1]} 23... c4 {[%clk 0:02:08.6]} 24. Nd4 {[%clk 0:01:52.2]} 24... c3
{[%clk 0:01:48.6]} 25. Rc6 {[%clk 0:01:47.9]} 25... Bd5 {[%clk 0:01:31.4]} 26.
Rc5 {[%clk 0:01:45.4]} 26... Be4 {[%clk 0:01:31.2]} 27. f3 {[%clk 0:01:34.5]}
27... Bd3 {[%clk 0:01:29]} 28. Kf2 {[%clk 0:01:34.7]} 28... Kg7 {[%clk
0:01:26.2]} 29. Ra5 {[%clk 0:01:10.2]} 29... Nb4 {[%clk 0:01:22.7]} 30. Ra3
{[%clk 0:00:22.7]} 30... Rc8 {[%clk 0:01:11.3]} 31. Ne2 {[%clk 0:00:17.6]} 31...
c2 {[%clk 0:00:53.7]} 32. Nc1 {[%clk 0:00:16.3]} 32... Bf5 {[%clk 0:00:52.6]}
33. g4 {[%clk 0:00:12.5]} 33... Be6 {[%clk 0:00:53.2]} 34. Ra4 {[%clk
0:00:09.4]} 34... Nd5 {[%clk 0:00:49.3]} 35. Bd2 {[%clk 0:00:07.4]} 35... h6
{[%clk 0:00:37.8]} 36. Ra7 {[%clk 0:00:06.4]} 36... g5 {[%clk 0:00:37.5]} 37.
Rb7 {[%clk 0:00:03.2]} 37... Kg6 {[%clk 0:00:35.6]} 0-1

[Event "*** Titled Tuesday 3|2 Blitz"]
[Site "Chess.com"]
[Date "2016.07.05"]
[Round "5"]
[White "pedromartinez91"]
[Black "Izoria123"]
[Result "0-1"]
[WhiteElo "2314"]
[BlackElo "2598"]
[TimeControl "180+2"]
[EndTime "18:02:30 PDT"]
[Termination "Izoria123 won on time"]

1. b3 {[%clk 0:03:01.3]} 1... e5 {[%clk 0:02:58.5]} 2. Bb2 {[%clk 0:03:01.1]}
2... d6 {[%clk 0:03:00.2]} 3. e3 {[%clk 0:02:58.4]} 3... g6 {[%clk 0:03:00.7]}
4. Nc3 {[%clk 0:02:58.5]} 4... Bg7 {[%clk 0:03:01.9]} 5. d4 {[%clk 0:02:58.7]}
5... exd4 {[%clk 0:03:00.9]} 6. exd4 {[%clk 0:02:59.3]} 6... Nc6 {[%clk
0:02:58.7]} 7. Nge2 {[%clk 0:02:56.6]} 7... Nh6 {[%clk 0:02:50.1]} 8. h3 {[%clk
0:02:18.7]} 8... Nf5 {[%clk 0:02:42.3]} 9. d5 {[%clk 0:02:15.7]} 9... Ne5 {[%clk
0:02:41.2]} 10. Qd2 {[%clk 0:02:01.5]} 10... Qh4 {[%clk 0:02:36.6]} 11. Qf4
{[%clk 0:01:49.5]} 11... Qe7 {[%clk 0:02:28.3]} 12. g4 {[%clk 0:01:30.2]} 12...
Nd4 {[%clk 0:01:14.3]} 13. Kd1 {[%clk 0:01:04]} 13... Nxe2 {[%clk 0:00:59.6]}
14. Bxe2 {[%clk 0:01:02.8]} 14... O-O {[%clk 0:01:00]} 15. Qg3 {[%clk
0:00:54.7]} 15... f5 {[%clk 0:00:58.4]} 16. f4 {[%clk 0:00:54.6]} 16... Nd7
{[%clk 0:00:56.8]} 17. gxf5 {[%clk 0:00:51.1]} 17... Rxf5 {[%clk 0:00:57.2]} 18.
Bg4 {[%clk 0:00:48.9]} 18... Nc5 {[%clk 0:00:44.6]} 19. Re1 {[%clk 0:00:44.7]}
19... Qf8 {[%clk 0:00:44.8]} 20. Bxf5 {[%clk 0:00:37.3]} 20... Bxf5 {[%clk
0:00:46.7]} 21. b4 {[%clk 0:00:33.1]} 21... Nd7 {[%clk 0:00:45.8]} 22. Na4
{[%clk 0:00:33.6]} 22... Nf6 {[%clk 0:00:46.4]} 23. Kc1 {[%clk 0:00:22.2]} 23...
b5 {[%clk 0:00:39.9]} 24. Nc3 {[%clk 0:00:22.6]} 24... a6 {[%clk 0:00:39.5]} 25.
a4 {[%clk 0:00:21.5]} 25... bxa4 {[%clk 0:00:34.3]} 26. Rxa4 {[%clk 0:00:21.7]}
26... Nh5 {[%clk 0:00:35.4]} 27. Qf2 {[%clk 0:00:17.1]} 27... Nxf4 {[%clk
0:00:35]} 28. Kb1 {[%clk 0:00:15]} 28... Nxh3 {[%clk 0:00:32.2]} 29. Qf1 {[%clk
0:00:16.1]} 29... Ng5 {[%clk 0:00:29.8]} 30. Rxa6 {[%clk 0:00:16.8]} 30... Rb8
{[%clk 0:00:30.9]} 31. b5 {[%clk 0:00:16.2]} 31... Nf7 {[%clk 0:00:30.4]} 32.
Ra7 {[%clk 0:00:17]} 32... Qc8 {[%clk 0:00:31]} 33. Re7 {[%clk 0:00:17.2]} 33...
Rb7 {[%clk 0:00:26.9]} 34. b6 {[%clk 0:00:13.5]} 34... Rxb6 {[%clk 0:00:22.2]}
35. Rexc7 {[%clk 0:00:12.1]} 35... Qb8 {[%clk 0:00:22.4]} 36. Rxf7 {[%clk
0:00:03.4]} 36... Rxb2+ {[%clk 0:00:22.5]} 37. Kc1 {[%clk 0:00:04.9]} 37... Bxc3
{[%clk 0:00:18.1]} 38. Rg7+ {[%clk 0:00:02.4]} 38... Bxg7 {[%clk 0:00:18.2]} 0-1

[Event "*** Titled Tuesday 3|2 Blitz"]
[Site "Chess.com"]
[Date "2016.07.05"]
[Round "5"]
[White "ruifeng"]
[Black "Evgeny_Levin"]
[Result "0-1"]
[WhiteElo "2316"]
[BlackElo "2620"]
[TimeControl "180+2"]
[EndTime "18:02:36 PDT"]
[Termination "Evgeny_Levin won by resignation"]

1. e4 {[%clk 0:03:01.9]} 1... Nf6 {[%clk 0:03:00]} 2. Nc3 {[%clk 0:02:58.8]}
2... d5 {[%clk 0:03:00.7]} 3. exd5 {[%clk 0:02:57.6]} 3... Nxd5 {[%clk
0:03:02.6]} 4. Nf3 {[%clk 0:02:57.9]} 4... c6 {[%clk 0:03:03.6]} 5. Bc4 {[%clk
0:02:53.2]} 5... Bg4 {[%clk 0:03:03.7]} 6. O-O {[%clk 0:02:50.1]} 6... e6 {[%clk
0:03:03.6]} 7. Ne4 {[%clk 0:02:50.8]} 7... Nd7 {[%clk 0:03:02.5]} 8. h3 {[%clk
0:02:50.1]} 8... Bxf3 {[%clk 0:02:56.1]} 9. Qxf3 {[%clk 0:02:48.1]} 9... Ne5
{[%clk 0:02:56.2]} 10. Qb3 {[%clk 0:02:49]} 10... Nxc4 {[%clk 0:02:55.8]} 11.
Qxc4 {[%clk 0:02:50.2]} 11... Be7 {[%clk 0:02:57.4]} 12. d4 {[%clk 0:02:51.1]}
12... O-O {[%clk 0:02:58.4]} 13. Qe2 {[%clk 0:02:49.6]} 13... Nf6 {[%clk
0:02:54.2]} 14. c3 {[%clk 0:02:50.6]} 14... Nxe4 {[%clk 0:02:53]} 15. Qxe4
{[%clk 0:02:51.8]} 15... Qd5 {[%clk 0:02:54.8]} 16. Qg4 {[%clk 0:02:52.1]} 16...
b5 {[%clk 0:02:45.5]} 17. Bh6 {[%clk 0:02:50.7]} 17... Bf6 {[%clk 0:02:46.4]}
18. h4 {[%clk 0:02:46.8]} 18... b4 {[%clk 0:02:41.1]} 19. Rfe1 {[%clk
0:02:41.7]} 19... bxc3 {[%clk 0:02:20.4]} 20. bxc3 {[%clk 0:02:42.9]} 20... Rab8
{[%clk 0:02:14.6]} 21. Re3 {[%clk 0:02:41.5]} 21... Kh8 {[%clk 0:02:03.9]} 22.
Bg5 {[%clk 0:02:40]} 22... Bd8 {[%clk 0:01:54]} 23. Re5 {[%clk 0:02:28]} 23...
Qd6 {[%clk 0:01:45.1]} 24. Bf4 {[%clk 0:02:22.5]} 24... Bc7 {[%clk 0:01:43]} 25.
Re4 {[%clk 0:02:21.5]} 25... Qd7 {[%clk 0:01:42.2]} 26. Bxc7 {[%clk 0:02:13.4]}
26... Qxc7 {[%clk 0:01:44.1]} 27. Qg5 {[%clk 0:02:05.7]} 27... Rb5 {[%clk
0:01:43.8]} 28. Qe3 {[%clk 0:01:59.5]} 28... Rfb8 {[%clk 0:01:44.3]} 29. Re1
{[%clk 0:01:59.7]} 29... Rb2 {[%clk 0:01:37.2]} 30. a4 {[%clk 0:01:58.7]} 30...
Qd6 {[%clk 0:01:34.9]} 31. h5 {[%clk 0:01:55.8]} 31... h6 {[%clk 0:01:33.3]} 32.
g4 {[%clk 0:01:51.2]} 32... Rb1 {[%clk 0:01:31]} 33. Kg2 {[%clk 0:01:39.4]}
33... Rxe1 {[%clk 0:01:27.9]} 34. Qxe1 {[%clk 0:01:40.2]} 34... Qd5 {[%clk
0:01:29.8]} 35. Kg3 {[%clk 0:01:29.9]} 35... Rb3 {[%clk 0:01:29.1]} 36. Re3
{[%clk 0:01:29.2]} 36... Qc4 {[%clk 0:01:12.2]} 37. a5 {[%clk 0:01:18.8]} 37...
Qd5 {[%clk 0:01:10.6]} 38. a6 {[%clk 0:01:18.1]} 38... Qc4 {[%clk 0:01:09.7]}
39. Rf3 {[%clk 0:00:52.1]} 39... Kg8 {[%clk 0:01:08.7]} 40. Qe3 {[%clk
0:00:49.5]} 40... Qxa6 {[%clk 0:01:04.4]} 41. g5 {[%clk 0:00:49.6]} 41... hxg5
{[%clk 0:00:57.4]} 42. Qxg5 {[%clk 0:00:50.4]} 42... Qf1 {[%clk 0:00:49.6]} 43.
Qd8+ {[%clk 0:00:44.2]} 43... Kh7 {[%clk 0:00:50.3]} 44. Rxf7 {[%clk 0:00:31.3]}
44... Rxc3+ {[%clk 0:00:47.6]} 45. f3 {[%clk 0:00:32.2]} 45... Qg1+ {[%clk
0:00:46.9]} 46. Kh3 {[%clk 0:00:27.8]} 46... Rc2 {[%clk 0:00:48]} 47. Qd6 {[%clk
0:00:24.4]} 47... Qh1+ {[%clk 0:00:37.8]} 48. Kg4 {[%clk 0:00:23]} 48... Rg2+
{[%clk 0:00:38]} 49. Kf4 {[%clk 0:00:24.2]} 49... Qh2+ {[%clk 0:00:39.1]} 0-1

[Event "*** Titled Tuesday 3|2 Blitz"]
[Site "Chess.com"]
[Date "2016.07.05"]
[Round "5"]
[White "EltajSafarli"]
[Black "FairChess_on_YouTube"]
[Result "1-0"]
[WhiteElo "2816"]
[BlackElo "2726"]
[TimeControl "180+2"]
[EndTime "18:03:15 PDT"]
[Termination "EltajSafarli won by resignation"]

1. e4 {[%clk 0:03:01.9]} 1... e5 {[%clk 0:03:01.1]} 2. Nf3 {[%clk 0:03:02.9]}
2... Nc6 {[%clk 0:03:02.7]} 3. Bb5 {[%clk 0:03:03.1]} 3... Nf6 {[%clk
0:03:03.9]} 4. O-O {[%clk 0:03:01.7]} 4... Nxe4 {[%clk 0:03:04.9]} 5. d4 {[%clk
0:03:03.1]} 5... Nd6 {[%clk 0:03:05.2]} 6. dxe5 {[%clk 0:03:02.6]} 6... Nxb5
{[%clk 0:03:06.1]} 7. a4 {[%clk 0:03:04.2]} 7... Nbd4 {[%clk 0:03:06.2]} 8. Nxd4
{[%clk 0:03:05.7]} 8... Nxd4 {[%clk 0:03:08.1]} 9. Qxd4 {[%clk 0:03:06.4]} 9...
d5 {[%clk 0:03:09.4]} 10. Nc3 {[%clk 0:03:06.8]} 10... c6 {[%clk 0:03:10.3]} 11.
a5 {[%clk 0:03:08.2]} 11... Be7 {[%clk 0:03:09]} 12. Qd3 {[%clk 0:03:05.8]}
12... O-O {[%clk 0:03:08.6]} 13. Ne2 {[%clk 0:03:06.8]} 13... f6 {[%clk
0:03:01.3]} 14. Bf4 {[%clk 0:03:04.6]} 14... fxe5 {[%clk 0:02:47.1]} 15. Bxe5
{[%clk 0:03:06.5]} 15... Bf6 {[%clk 0:02:48.2]} 16. Bxf6 {[%clk 0:03:01.8]}
16... Qxf6 {[%clk 0:02:50.1]} 17. b4 {[%clk 0:03:00.4]} 17... Bf5 {[%clk
0:02:49.1]} 18. Qd2 {[%clk 0:03:01.7]} 18... b6 {[%clk 0:02:18.9]} 19. axb6
{[%clk 0:02:54.3]} 19... axb6 {[%clk 0:02:20.8]} 20. Rxa8 {[%clk 0:02:55.6]}
20... Rxa8 {[%clk 0:02:21.8]} 21. b5 {[%clk 0:02:57.5]} 21... Bg4 {[%clk
0:02:06.8]} 22. f3 {[%clk 0:02:56.5]} 22... Bd7 {[%clk 0:01:58.5]} 23. bxc6
{[%clk 0:02:56.5]} 23... Qxc6 {[%clk 0:01:59.4]} 24. Nd4 {[%clk 0:02:56.3]}
24... Qc4 {[%clk 0:01:57.4]} 25. Rb1 {[%clk 0:02:50.6]} 25... b5 {[%clk
0:01:54.2]} 26. h3 {[%clk 0:02:48.3]} 26... h6 {[%clk 0:01:54.6]} 27. Kh2 {[%clk
0:02:46.4]} 27... Qc7+ {[%clk 0:01:49.2]} 28. Kh1 {[%clk 0:02:44]} 28... Ra4
{[%clk 0:01:42.1]} 29. Ne2 {[%clk 0:02:08.1]} 29... Qe5 {[%clk 0:01:30]} 30. Rd1
{[%clk 0:02:05.4]} 30... Rc4 {[%clk 0:01:12.5]} 31. c3 {[%clk 0:01:56.1]} 31...
Kh7 {[%clk 0:00:53.8]} 32. Qxd5 {[%clk 0:01:38.2]} 32... Qxe2 {[%clk 0:00:47.5]}
33. Qxd7 {[%clk 0:01:38.9]} 33... Qc2 {[%clk 0:00:37]} 34. Rd3 {[%clk
0:01:38.1]} 34... Qc1+ {[%clk 0:00:37.3]} 35. Kh2 {[%clk 0:01:38.8]} 35... Qf4+
{[%clk 0:00:37.6]} 36. Kg1 {[%clk 0:01:34.8]} 36... Qc1+ {[%clk 0:00:33.5]} 37.
Kf2 {[%clk 0:01:33.3]} 37... Qg5 {[%clk 0:00:33]} 38. Re3 {[%clk 0:01:31.3]}
38... Rc5 {[%clk 0:00:15.9]} 39. Qd3+ {[%clk 0:01:25.3]} 39... Qg6 {[%clk
0:00:16.6]} 40. Re4 {[%clk 0:01:22.4]} 40... h5 {[%clk 0:00:11]} 41. h4 {[%clk
0:01:19.3]} 41... Rc8 {[%clk 0:00:10.8]} 42. g3 {[%clk 0:01:17.4]} 42... Kh8
{[%clk 0:00:10.1]} 43. Kg2 {[%clk 0:01:14.1]} 43... Kh7 {[%clk 0:00:05.4]} 44.
Qe3 {[%clk 0:01:04.6]} 44... Rc6 {[%clk 0:00:04.3]} 45. Re5 {[%clk 0:01:03.3]}
45... b4 {[%clk 0:00:02.8]} 46. cxb4 {[%clk 0:01:01.6]} 46... Rc2+ {[%clk
0:00:04.7]} 47. Kh3 {[%clk 0:01:01.3]} 47... Rb2 {[%clk 0:00:05.8]} 48. Rg5
{[%clk 0:00:39.7]} 48... Qf7 {[%clk 0:00:07.2]} 49. Qe4+ {[%clk 0:00:40.7]}
49... Kg8 {[%clk 0:00:06.6]} 50. Rd5 {[%clk 0:00:42]} 50... Qf6 {[%clk
0:00:03.9]} 51. Qe8+ {[%clk 0:00:40.4]} 51... Kh7 {[%clk 0:00:04.8]} 52. Rxh5+
{[%clk 0:00:40.6]} 1-0